[Event "Lidkoping Open 2019"]
[Site "Lidkoping"]
[Date "2019.08.24"]
[Round "1.13"]
[White "Loken, Espen"]
[Black "Lind, Jan-Olov"]
[Result "1-0"]
[ECO "B23"]
[WhiteElo "1805"]
[BlackElo "2164"]
[Annotator "ChessBase"]
[PlyCount "175"]
[EventDate "2019.08.19"]
[EventType "swiss"]
[EventCountry "SWE"]
[SourceTitle "playchess.com"]
[Source "ChessBase"]
[SourceQuality "1"]
[TimeControl "2700+10"]

1. e4 {[%emt 0:00:00]} c5 {[%emt 0:00:00]} 2. Nc3 {[%emt 0:00:00]} e6 {[%emt 0:00:00]} 3. g3 {[%emt 0:00:25]} d5 {[%emt 0:00:00]} 4. exd5 {[%emt 0:00:26]} exd5 {[%emt 0:00:00]} 5. d4 {[%emt 0:00:32]} cxd4 {[%emt 0:00:00]} 6. Qxd4 {[%emt 0:00:14]} Nf6 {[%emt 0:00:01]} 7. Bg5 {[%emt 0:00:48]} Be7 {[%emt 0:00:02]} 8. O-O-O {[%emt 0:00:38]} Nc6 {[%emt 0:00:07]} 9. Qa4 {[%emt 0:02:29]} Qb6 {[%emt 0:03:40]} 10. Be3 {[%emt 0:01:30]} Bc5 {[%emt 0:00:57]} 11. Bxc5 {[%emt 0:03:35]} Qxc5 {[%emt 0:00:01]} 12. Bg2 {[%emt 0:01:04]} Be6 {[%emt 0:01:14]} 13. Nh3 {[%emt 0:01:24]} O-O {[%emt 0:05:15]} 14. Nf4 {[%emt 0:00:22]} Qxf2 {[%emt 0:02:27]} 15. Bxd5 {[%emt 0:03:14]} Nxd5 {[%emt 0:01:20]} 16. Nfxd5 {[%emt 0:00:49]} Bxd5 {[%emt 0:06:04]} 17. Nxd5 {[%emt 0:00:14]} Rad8 {[%emt 0:00:12]} 18. Rd2 {[%emt 0:01:22]} Qc5 {[%emt 0:00:18]} 19. Rhd1 {[%emt 0:00:13]} Kh8 {[%emt 0:00:54]} 20. c3 {[%emt 0:00:28]} b5 {[%emt 0:02:47]} 21. Qh4 {[%emt 0:00:12]} a5 {[%emt 0:01:01]} 22. Nf6 {[%emt 0:02:31]} h6 {[%emt 0:05:45]} 23. Nd7 {[%emt 0:00:30]} Rxd7 {[%emt 0:01:04]} 24. Rxd7 {[%emt 0:00:16]} b4 {[%emt 0:00:53]} 25. c4 {[%emt 0:00:44]} Qe3+ {[%emt 0:00:25]} 26. Kb1 {[%emt 0:00:18]} a4 {[%emt 0:01:17]} 27. Qf4 {[%emt 0:00:22]} Qe2 {[%emt 0:01:39]} 28. Qd6 {[%emt 0:00:48]} Rc8 {[%emt 0:00:14]} 29. Qf4 {[%emt 0:03:27]} f6 {[%emt 0:01:59]} 30. R7d2 {[%emt 0:00:44]} Qe8 {[%emt 0:00:23]} 31. Rd7 {[%emt 0:01:14]} Qg6+ {[%emt 0:01:11]} 32. Ka1 {[%emt 0:00:13]} Qc2 {[%emt 0:01:02]} 33. R7d2 {[%emt 0:00:29]} Qg6 {[%emt 0:00:24]} 34. g4 {[%emt 0:00:28]} Kh7 {[%emt 0:00:53]} 35. h4 {[%emt 0:00:07]} Ne5 {[%emt 0:01:32]} 36. Rd4 {[%emt 0:00:49]} a3 {[%emt 0:00:15]} 37. h5 {[%emt 0:01:02]} axb2+ {[%emt 0:00:49]} 38. Kxb2 {[%emt 0:00:18]} Qe8 {[%emt 0:00:02]} 39. Qf5+ {[%emt 0:01:05]} Kg8 {[%emt 0:00:20]} 40. Qxc8 {[%emt 0:00:33]} Qxc8 {[%emt 0:00:01]} 41. Rd8+ {[%emt 0:00:10]} Qxd8 {[%emt 0:00:02]} 42. Rxd8+ {[%emt 0:00:11]} Kf7 {[%emt 0:00:01]} 43. Rd4 {[%emt 0:00:26]} Ke6 {[%emt 0:00:31]} 44. c5 {[%emt 0:00:40]} Nf3 {[%emt 0:01:19]} 45. Rf4 {[%emt 0:01:10]} Ne5 {[%emt 0:00:09]} 46. Kb3 {[%emt 0:00:46]} Kd5 {[%emt 0:00:42]} 47. Rxb4 {[%emt 0:00:51]} Kxc5 {[%emt 0:00:05]} 48. Rb7 {[%emt 0:00:16]} Nxg4 {[%emt 0:00:07]} 49. Rxg7 {[%emt 0:00:17]} f5 {[%emt 0:00:54]} 50. Rf7 {[%emt 0:00:29]} Ne3 {[%emt 0:00:08]} 51. Rf6 {[%emt 0:00:21]} Kd5 {[%emt 0:00:24]} 52. a4 {[%emt 0:00:20]} Ke5 {[%emt 0:00:09]} 53. Rxh6 {[%emt 0:00:45]} f4 {[%emt 0:00:06]} 54. Rc6 {[%emt 0:00:54]} f3 {[%emt 0:00:20]} 55. Rc1 {[%emt 0:00:26]} f2 {[%emt 0:00:15]} 56. h6 {[%emt 0:00:24]} Kf6 {[%emt 0:00:15]} 57. a5 {[%emt 0:00:08]} f1=Q {[%emt 0:00:44]} 58. Rxf1+ {[%emt 0:00:12]} Nxf1 {[%emt 0:00:01]} 59. Kb4 {[%emt 0:00:47]} Ne3 {[%emt 0:00:09]} 60. Kc5 {[%emt 0:00:29]} Nf5 {[%emt 0:00:56]} 61. a6 {[%emt 0:00:21]} Nxh6 {[%emt 0:00:05]} 62. a7 {[%emt 0:00:04]} Nf5 {[%emt 0:00:03]} 63. a8=Q {[%emt 0:00:08]} Ke5 {[%emt 0:00:03]} 64. Qe8+ {[%emt 0:00:19]} Kf6 {[%emt 0:00:16]} 65. Kd5 {[%emt 0:00:59]} Ne7+ {[%emt 0:00:03]} 66. Ke4 {[%emt 0:00:08]} Ke6 {[%emt 0:00:05]} 67. Qd8 {[%emt 0:00:30]} Kf7 {[%emt 0:00:19]} 68. Qd7 {[%emt 0:00:08]} Kf6 {[%emt 0:00:07]} 69. Qe8 {[%emt 0:00:23]} Ke6 {[%emt 0:00:02]} 70. Qf8 {[%emt 0:00:47]} Kd7 {[%emt 0:00:01]} 71. Qf6 {[%emt 0:00:22]} Nc6 {[%emt 0:00:25]} 72. Kd5 {[%emt 0:00:41]} Ne7+ {[%emt 0:00:30]} 73. Kc5 {[%emt 0:00:04]} Nc8 {[%emt 0:00:22]} 74. Qc6+ {[%emt 0:00:35]} Kd8 {[%emt 0:00:01]} 75. Qe6 {[%emt 0:00:10]} Kc7 {[%emt 0:00:38]} 76. Qf7+ {[%emt 0:00:39]} Kd8 {[%emt 0:00:11]} 77. Kc6 {[%emt 0:00:41]} Ne7+ {[%emt 0:00:01]} 78. Kb7 {[%emt 0:00:12]} Kd7 {[%emt 0:00:02]} 79. Qf6 {[%emt 0:00:39]} Ke8 {[%emt 0:00:04]} 80. Qe6 {[%emt 0:00:08]} Kd8 {[%emt 0:00:04]} 81. Kb6 {[%emt 0:00:30]} Nc8+ {[%emt 0:00:18]} 82. Kc5 {[%emt 0:00:27]} Ne7 {[%emt 0:00:03]} 83. Qf6 {[%emt 0:00:23]} Kd7 {[%emt 0:00:03]} 84. Qf7 {[%emt 0:00:08]} Kd8 {[%emt 0:00:02]} 85. Kd6 {[%emt 0:00:10]} Nc8+ {[%emt 0:00:02]} 86. Ke6 {[%emt 0:00:16]} Nb6 {[%emt 0:00:01]} 87. Qb7 {[%emt 0:00:22]} Nc8 {[%emt 0:01:20]} 88. Qd7# {[%emt 0:00:05]} 1-0

[Event "Lidkoping Open 2019"]
[Site "Lidkoping"]
[Date "2019.08.24"]
[Round "1.15"]
[White "Olsson, Stefan"]
[Black "Nordlund, Keith"]
[Result "1/2-1/2"]
[ECO "C78"]
[WhiteElo "1860"]
[BlackElo "2013"]
[Annotator "NA"]
[PlyCount "56"]
[EventDate "2019.08.19"]
[EventType "swiss"]
[EventCountry "SWE"]
[SourceTitle "playchess.com"]
[Source "ChessBase"]
[SourceQuality "1"]
[TimeControl "2700+10"]

1. e4 {[%emt 0:00:00]} e5 {[%emt 0:00:00]} 2. Nf3 {[%emt 0:00:00]} Nc6 {[%emt 0:00:06]} 3. Bb5 {[%emt 0:00:06]} a6 {[%emt 0:00:24]} 4. Ba4 {[%emt 0:00:02]} Nf6 {[%emt 0:00:09]} 5. O-O {[%emt 0:00:26]} b5 {[%emt 0:00:48]} 6. Bb3 {[%emt 0:00:02]} Bb7 {[%emt 0:00:09]} 7. c3 {[%emt 0:02:21]} Nxe4 {[%emt 0:00:22]} 8. d4 {[%emt 0:01:05]} Na5 {[%emt 0:03:25]} 9. Bc2 {[%emt 0:01:43]} d5 {[%emt 0:01:03]} 10. Nxe5 {[%emt 0:04:17]} Bd6 {[%emt 0:06:23]} 11. f3 {[%emt 0:07:52]} Nf6 {[%emt 0:05:43]} 12. Bg5 {[%emt 0:01:28]} h6 {[%emt 0:01:47]} 13. Bh4 {[%emt 0:00:40]} Nc4 {[%emt 0:00:35]} 14. Nxc4 {[%emt 0:04:40]} dxc4 {[%emt 0:00:32]} 15. Re1+ {[%emt 0:03:02]} Kf8 {[%emt 0:00:05]} 16. Be4 {[%emt 0:01:10]} Rb8 {[%emt 0:02:29]} 17. Bxb7 Rxb7 {[%emt 0:00:04]} 18. Nd2 {[%emt 0:00:12]} g5 {[%emt 0:00:43]} 19. Bg3 {[%emt 0:02:29]} c5 {[%emt 0:02:32]} 20. Bxd6+ {[%emt 0:00:54]} Qxd6 {[%emt 0:00:08]} 21. Ne4 {[%emt 0:00:04]} Nxe4 {[%emt 0:00:10]} 22. Rxe4 {[%emt 0:01:51]} Kg7 {[%emt 0:02:13]} 23. dxc5 {[%emt 0:02:58]} Qxc5+ {[%emt 0:00:05]} 24. Qd4+ {[%emt 0:00:37]} Qxd4+ {[%emt 0:00:06]} 25. Rxd4 {[%emt 0:00:02]} Re8 {[%emt 0:00:19]} 26. Rad1 {[%emt 0:00:09]} Re2 {[%emt 0:00:50]} 27. R4d2 {[%emt 0:00:04]} Rbe7 {[%emt 0:00:14]} 28. Kf1 {[%emt 0:00:03]} R2e6 {[%emt 0:00:17]} 1/2-1/2

[Event "Lidkoping Open 2019"]
[Site "Lidkoping"]
[Date "2019.08.24"]
[Round "1.20"]
[White "Johnson, Daniel"]
[Black "Ullberg, Stefan"]
[Result "1-0"]
[ECO "D13"]
[WhiteElo "2201"]
[BlackElo "1772"]
[Annotator "ChessBase"]
[PlyCount "55"]
[EventDate "2019.08.19"]
[EventType "swiss"]
[EventCountry "SWE"]
[SourceTitle "playchess.com"]
[Source "ChessBase"]
[SourceQuality "1"]
[TimeControl "2700+10"]

1. d4 {[%emt 0:00:02]} d5 {[%emt 0:00:01]} 2. c4 {[%emt 0:00:05]} c6 {[%emt 0:00:20]} 3. cxd5 {[%emt 0:00:56]} cxd5 {[%emt 0:00:10]} 4. Bf4 {[%emt 0:00:30]} Nf6 {[%emt 0:01:09]} 5. Nc3 {[%emt 0:00:16]} a6 {[%emt 0:01:03]} 6. e3 {[%emt 0:00:12]} e6 {[%emt 0:01:55]} 7. Bd3 {[%emt 0:01:51]} Bd6 {[%emt 0:00:49]} 8. Bg3 {[%emt 0:05:00]} O-O {[%emt 0:01:16]} 9. Nf3 {[%emt 0:00:20]} Nc6 {[%emt 0:00:59]} 10. Rc1 {[%emt 0:00:43]} Re8 {[%emt 0:00:57]} 11. O-O {[%emt 0:04:49]} e5 {[%emt 0:01:35]} 12. dxe5 {[%emt 0:04:10]} Nxe5 {[%emt 0:00:12]} 13. Nd4 {[%emt 0:00:55]} Nxd3 {[%emt 0:01:59]} 14. Qxd3 {[%emt 0:00:14]} g6 {[%emt 0:04:21]} 15. Rfd1 {[%emt 0:02:12]} Bxg3 {[%emt 0:07:19]} 16. hxg3 {[%emt 0:00:07]} Qd6 {[%emt 0:04:35]} 17. Nde2 {[%emt 0:11:32]} Be6 {[%emt 0:06:34]} 18. Nf4 {[%emt 0:01:44]} Rad8 {[%emt 0:01:19]} 19. Qd4 {[%emt 0:00:55]} Qe7 {[%emt 0:01:53]} 20. Qb6 {[%emt 0:05:28]} Rc8 {[%emt 0:01:42]} 21. Ncxd5 {[%emt 0:05:12]} Nxd5 {[%emt 0:01:50]} 22. Nxd5 {[%emt 0:00:13]} Bxd5 {[%emt 0:00:37]} 23. Rxc8 {[%emt 0:00:09]} Rxc8 {[%emt 0:00:20]} 24. Rxd5 {[%emt 0:00:02]} Rc1+ {[%emt 0:01:18]} 25. Kh2 {[%emt 0:00:01]} Rc2 {[%emt 0:01:45]} 26. Rd8+ {[%emt 0:00:09]} Kg7 {[%emt 0:00:21]} 27. Qd4+ {[%emt 0:00:03]} Qf6 {[%emt 0:00:23]} 28. Rg8+ {[%emt 0:00:03]} 1-0

[Event "Lidkoping Open 2019"]
[Site "Lidkoping"]
[Date "2019.08.24"]
[Round "1.21"]
[White "Andersson, Christian"]
[Black "Svensson, Leif"]
[Result "0-1"]
[ECO "D35"]
[WhiteElo "1794"]
[BlackElo "2027"]
[Annotator "NA"]
[PlyCount "67"]
[EventDate "2019.08.19"]
[EventType "swiss"]
[EventCountry "SWE"]
[SourceTitle "playchess.com"]
[Source "ChessBase"]
[SourceQuality "1"]
[TimeControl "2700+10"]

1. c4 {[%emt 0:00:00]} c6 {[%emt 0:00:00]} 2. g3 {[%emt 0:00:28]} e6 {[%emt 0:00:20]} 3. Bg2 {[%emt 0:00:33]} d5 {[%emt 0:00:05]} 4. cxd5 {[%emt 0:00:57]} exd5 {[%emt 0:00:07]} 5. d4 {[%emt 0:00:16]} Nf6 {[%emt 0:00:21]} 6. Nf3 {[%emt 0:01:25]} Bd6 {[%emt 0:00:58]} 7. O-O {[%emt 0:00:34]} Nbd7 {[%emt 0:01:57]} 8. Nc3 {[%emt 0:01:46]} O-O {[%emt 0:00:09]} 9. e4 {[%emt 0:03:12]} dxe4 {[%emt 0:00:20]} 10. Ng5 {[%emt 0:00:13]} Re8 {[%emt 0:01:23]} 11. Ngxe4 {[%emt 0:04:25]} Nxe4 {[%emt 0:00:23]} 12. Nxe4 {[%emt 0:00:23]} Bf8 {[%emt 0:00:19]} 13. Qb3 {[%emt 0:05:52]} Nb6 {[%emt 0:04:04]} 14. Be3 {[%emt 0:03:59]} Nd5 {[%emt 0:01:19]} 15. Rac1 {[%emt 0:03:50]} Qb6 {[%emt 0:02:30]} 16. Qxb6 {[%emt 0:01:32]} axb6 {[%emt 0:00:07]} 17. a3 {[%emt 0:01:42]} Bf5 {[%emt 0:00:41]} 18. Nc3 {[%emt 0:00:45]} Nxe3 {[%emt 0:02:15]} 19. fxe3 {[%emt 0:00:17]} Bd3 {[%emt 0:00:18]} 20. Rfe1 {[%emt 0:00:38]} Rad8 {[%emt 0:04:14]} 21. d5 {[%emt 0:01:18]} Bc5 {[%emt 0:00:39]} 22. dxc6 {[%emt 0:01:56]} Rxe3 {[%emt 0:01:39]} 23. Kh1 {[%emt 0:00:50]} bxc6 {[%emt 0:00:24]} 24. Bxc6 {[%emt 0:01:43]} g6 {[%emt 0:03:47]} 25. Rxe3 {[%emt 0:01:58]} Bxe3 {[%emt 0:00:07]} 26. Rd1 {[%emt 0:00:47]} Bg5 {[%emt 0:03:06]} 27. Kg2 {[%emt 0:02:17]} Bf6 {[%emt 0:00:16]} 28. Bd5 {[%emt 0:01:17]} Bc2 {[%emt 0:04:18]} 29. Rd2 {[%emt 0:00:58]} Bf5 {[%emt 0:00:07]} 30. Rd1 {[%emt 0:01:31]} Kg7 {[%emt 0:00:20]} 31. Bb3 {[%emt 0:00:17]} Rc8 {[%emt 0:01:01]} 32. Nd5 {[%emt 0:00:19]} Bxb2 {[%emt 0:00:35]} 33. Nxb6 {[%emt 0:01:21]} Rb8 {[%emt 0:00:33]} 34. Rd6 {[%emt 0:01:21]} 0-1

[Event "Lidkoping Open 2019"]
[Site "Lidkoping"]
[Date "2019.08.24"]
[Round "1.22"]
[White "Kleimark, Anders"]
[Black "Forsberg, Gunnar"]
[Result "1-0"]
[ECO "D94"]
[WhiteElo "2016"]
[BlackElo "1753"]
[Annotator "NA"]
[PlyCount "43"]
[EventDate "2019.08.19"]
[EventType "swiss"]
[EventCountry "SWE"]
[SourceTitle "playchess.com"]
[Source "ChessBase"]
[SourceQuality "1"]
[TimeControl "2700+10"]

1. d4 {[%emt 0:00:00]} d5 {[%emt 0:00:00]} 2. c4 {[%emt 0:00:14]} c6 {[%emt 0:00:01]} 3. Nf3 {[%emt 0:00:34]} Nf6 {[%emt 0:00:03]} 4. e3 {[%emt 0:00:39]} g6 {[%emt 0:00:02]} 5. Nc3 {[%emt 0:00:27]} Bg7 {[%emt 0:00:01]} 6. Be2 {[%emt 0:00:46]} O-O {[%emt 0:00:08]} 7. O-O {[%emt 0:00:28]} Bf5 {[%emt 0:00:16]} 8. b3 {[%emt 0:03:32]} Na6 {[%emt 0:01:10]} 9. Bb2 {[%emt 0:01:43]} Ne4 {[%emt 0:02:00]} 10. cxd5 {[%emt 0:04:46]} cxd5 {[%emt 0:42:59]} 11. Nb5 {[%emt 0:03:52]} Nb4 {[%emt 0:00:00]} 12. Nd2 {[%emt 0:05:18]} a6 {[%emt 0:00:00]} 13. Nxe4 {[%emt 0:00:51]} axb5 {[%emt 0:00:00]} 14. Nc3 {[%emt 0:01:31]} Nc2 {[%emt 0:00:00]} 15. Rc1 {[%emt 0:01:54]} b4 {[%emt 0:00:00]} 16. Na4 {[%emt 0:00:16]} Na3 {[%emt 0:00:00]} 17. Qd2 {[%emt 0:02:27]} Qd6 {[%emt 0:00:00]} 18. Nc5 {[%emt 0:01:20]} Qb6 {[%emt 0:00:00]} 19. Bf3 {[%emt 0:04:27]} Rfd8 {[%emt 0:00:00]} 20. Na4 {[%emt 0:00:30]} Qd6 {[%emt 0:00:00]} 21. Rc5 {[%emt 0:00:27]} Rdc8 {[%emt 0:00:00]} 22. Rfc1 {[%emt 0:01:42]} 1-0

[Event "Lidkoping Open 2019"]
[Site "Lidkoping"]
[Date "2019.08.24"]
[Round "2.1"]
[White "Blomqvist, Erik"]
[Black "Nordstrom, Per-Olov"]
[Result "1/2-1/2"]
[ECO "B31"]
[WhiteElo "2507"]
[BlackElo "1899"]
[Annotator "ChessBase"]
[PlyCount "102"]
[EventDate "2019.08.19"]
[EventType "swiss"]
[EventCountry "SWE"]
[SourceTitle "playchess.com"]
[Source "ChessBase"]
[SourceQuality "1"]
[TimeControl "2700+10"]

1. e4 {[%emt 0:00:00]} c5 {[%emt 0:00:00]} 2. Nf3 {[%emt 0:00:00]} Nc6 {[%emt 0:00:01]} 3. Bb5 {[%emt 0:00:43]} g6 {[%emt 0:00:08]} 4. O-O {[%emt 0:00:09]} Bg7 {[%emt 0:00:19]} 5. Nc3 {[%emt 0:00:05]} e5 {[%emt 0:00:39]} 6. d3 {[%emt 0:00:04]} Nge7 {[%emt 0:00:36]} 7. Bc4 {[%emt 0:00:02]} O-O {[%emt 0:01:52]} 8. a3 {[%emt 0:00:04]} d6 {[%emt 0:00:12]} 9. h3 {[%emt 0:01:17]} Nd4 {[%emt 0:00:35]} 10. Nd5 {[%emt 0:06:52]} h6 {[%emt 0:02:05]} 11. Nxd4 {[%emt 0:02:35]} cxd4 {[%emt 0:03:17]} 12. f4 {[%emt 0:01:14]} Be6 {[%emt 0:02:27]} 13. Nxe7+ {[%emt 0:05:40]} Qxe7 {[%emt 0:00:05]} 14. f5 {[%emt 0:03:20]} gxf5 {[%emt 0:01:22]} 15. exf5 {[%emt 0:00:03]} Bxc4 {[%emt 0:00:59]} 16. dxc4 {[%emt 0:00:01]} Qf6 {[%emt 0:03:02]} 17. Qd3 {[%emt 0:03:59]} Rac8 {[%emt 0:04:07]} 18. Bd2 {[%emt 0:00:12]} e4 {[%emt 0:04:45]} 19. Qxe4 {[%emt 0:00:10]} Rxc4 {[%emt 0:00:27]} 20. Qd3 {[%emt 0:04:34]} Rc5 {[%emt 0:03:38]} 21. Rae1 {[%emt 0:00:53]} Re5 {[%emt 0:01:43]} 22. Re2 {[%emt 0:04:45]} Rfe8 {[%emt 0:00:56]} 23. Ref2 {[%emt 0:00:05]} Re4 {[%emt 0:01:03]} 24. Rf3 {[%emt 0:01:49]} d5 {[%emt 0:01:28]} 25. a4 {[%emt 0:00:27]} b6 {[%emt 0:00:52]} 26. R1f2 {[%emt 0:00:52]} Kh8 {[%emt 0:00:57]} 27. g4 {[%emt 0:00:53]} Rg8 {[%emt 0:00:43]} 28. Kf1 {[%emt 0:00:37]} Bf8 {[%emt 0:00:40]} 29. c4 {[%emt 0:02:08]} Qc6 {[%emt 0:01:37]} 30. cxd5 {[%emt 0:00:14]} Qxd5 {[%emt 0:00:04]} 31. f6 {[%emt 0:00:14]} Rg6 {[%emt 0:00:38]} 32. Re2 {[%emt 0:04:23]} Rxe2 {[%emt 0:00:35]} 33. Kxe2 {[%emt 0:00:05]} a5 {[%emt 0:01:08]} 34. Kd1 {[%emt 0:00:24]} Bc5 {[%emt 0:01:11]} 35. Rf5 {[%emt 0:01:17]} Qh1+ {[%emt 0:00:37]} 36. Kc2 {[%emt 0:00:17]} Qc6 {[%emt 0:00:12]} 37. Kb1 {[%emt 0:00:28]} Rxf6 {[%emt 0:00:51]} 38. Rh5 {[%emt 0:00:01]} Kg7 {[%emt 0:02:35]} 39. g5 {[%emt 0:00:14]} hxg5 {[%emt 0:00:23]} 40. Qh7+ {[%emt 0:00:18]} Kf8 {[%emt 0:00:03]} 41. Qh8+ {[%emt 0:00:03]} Ke7 {[%emt 0:00:14]} 42. Bxg5 {[%emt 0:00:03]} Qh1+ {[%emt 0:00:11]} 43. Ka2 {[%emt 0:00:12]} Qd5+ {[%emt 0:00:07]} 44. b3 {[%emt 0:00:01]} Qg2+ {[%emt 0:00:18]} 45. Kb1 {[%emt 0:00:01]} Qf1+ {[%emt 0:00:25]} 46. Kc2 {[%emt 0:00:40]} Qe2+ {[%emt 0:00:19]} 47. Kb1 {[%emt 0:00:03]} Qd3+ {[%emt 0:00:34]} 48. Ka2 {[%emt 0:00:05]} Qc2+ {[%emt 0:00:09]} 49. Ka1 {[%emt 0:00:03]} Qd1+ {[%emt 0:00:14]} 50. Ka2 {[%emt 0:00:06]} Qc2+ {[%emt 0:00:04]} 51. Ka1 {[%emt 0:00:01]} Qd1+ {[%emt 0:00:02]} 1/2-1/2

[Event "Lidkoping Open 2019"]
[Site "Lidkoping"]
[Date "2019.08.24"]
[Round "2.2"]
[White "Johansson, Stefan"]
[Black "Bellon Lopez, Juan Manuel"]
[Result "0-1"]
[ECO "A34"]
[WhiteElo "2016"]
[BlackElo "2335"]
[Annotator "ChessBase"]
[PlyCount "58"]
[EventDate "2019.08.19"]
[EventType "swiss"]
[EventCountry "SWE"]
[SourceTitle "playchess.com"]
[Source "ChessBase"]
[SourceQuality "1"]
[TimeControl "2700+10"]

1. c4 {[%emt 0:00:00]} e6 {[%emt 0:00:00]} 2. Nc3 {[%emt 0:00:04]} c5 {[%emt 0:00:06]} 3. g3 {[%emt 0:00:08]} a6 {[%emt 0:00:26]} 4. Bg2 {[%emt 0:00:11]} Nf6 {[%emt 0:00:02]} 5. Nf3 {[%emt 0:00:57]} Nc6 {[%emt 0:00:30]} 6. d3 {[%emt 0:00:49]} d6 {[%emt 0:00:46]} 7. O-O {[%emt 0:00:21]} Be7 {[%emt 0:00:02]} 8. b3 {[%emt 0:01:07]} Rb8 {[%emt 0:00:24]} 9. Bb2 {[%emt 0:00:57]} b5 {[%emt 0:00:14]} 10. Qc2 {[%emt 0:01:46]} O-O {[%emt 0:00:27]} 11. a3 {[%emt 0:00:51]} e5 {[%emt 0:01:22]} 12. e3 {[%emt 0:00:10]} bxc4 {[%emt 0:01:48]} 13. bxc4 {[%emt 0:00:39]} Na5 {[%emt 0:00:19]} 14. Nd2 {[%emt 0:01:53]} Bb7 {[%emt 0:00:24]} 15. e4 {[%emt 0:01:09]} Nc6 {[%emt 0:00:17]} 16. Nd5 {[%emt 0:00:05]} Nd7 {[%emt 0:01:47]} 17. f4 {[%emt 0:01:15]} Nd4 {[%emt 0:00:22]} 18. Bxd4 {[%emt 0:01:13]} cxd4 {[%emt 0:00:03]} 19. fxe5 {[%emt 0:01:39]} dxe5 {[%emt 0:00:17]} 20. Bh3 {[%emt 0:01:46]} Nc5 {[%emt 0:04:45]} 21. Rab1 {[%emt 0:03:55]} Bg5 {[%emt 0:00:23]} 22. Nb3 {[%emt 0:01:23]} Ne6 {[%emt 0:00:52]} 23. a4 {[%emt 0:03:14]} Bc6 {[%emt 0:00:30]} 24. Qa2 {[%emt 0:00:32]} a5 {[%emt 0:02:03]} 25. Rf2 {[%emt 0:03:31]} Be3 {[%emt 0:01:27]} 26. Nxe3 {[%emt 0:00:52]} dxe3 {[%emt 0:00:02]} 27. Rff1 {[%emt 0:01:12]} Qxd3 {[%emt 0:01:05]} 28. Bxe6 {[%emt 0:03:15]} e2 {[%emt 0:01:22]} 29. Bd5 {[%emt 0:14:56]} Bxd5 {[%emt 0:00:34]} 0-1

[Event "Lidkoping Open 2019"]
[Site "Lidkoping"]
[Date "2019.08.24"]
[Round "2.4"]
[White "Beslagic, Smail"]
[Black "Ernst, Thomas"]
[Result "0-1"]
[ECO "A48"]
[WhiteElo "1853"]
[BlackElo "2329"]
[Annotator "NA"]
[PlyCount "46"]
[EventDate "2019.08.19"]
[EventType "swiss"]
[EventCountry "SWE"]
[SourceTitle "playchess.com"]
[Source "ChessBase"]
[SourceQuality "1"]
[TimeControl "2700+10"]

1. d4 {[%emt 0:00:00]} Nf6 {[%emt 0:00:00]} 2. Bf4 {[%emt 0:00:08]} g6 {[%emt 0:00:05]} 3. Nf3 {[%emt 0:00:15]} Bg7 {[%emt 0:00:03]} 4. e3 {[%emt 0:00:14]} O-O {[%emt 0:00:06]} 5. Nbd2 {[%emt 0:00:20]} c5 {[%emt 0:00:39]} 6. c3 {[%emt 0:00:38]} d6 {[%emt 0:01:03]} 7. Bd3 {[%emt 0:00:42]} Nc6 {[%emt 0:00:25]} 8. Qc2 {[%emt 0:01:56]} cxd4 {[%emt 0:00:57]} 9. exd4 {[%emt 0:00:44]} e5 {[%emt 0:00:28]} 10. dxe5 {[%emt 0:00:52]} dxe5 {[%emt 0:00:12]} 11. Bg5 {[%emt 0:01:13]} Qc7 {[%emt 0:00:27]} 12. Bxf6 {[%emt 0:00:58]} Bxf6 {[%emt 0:00:06]} 13. O-O {[%emt 0:00:51]} Bg7 {[%emt 0:01:21]} 14. Rfe1 {[%emt 0:00:56]} f5 {[%emt 0:01:03]} 15. Bc4+ {[%emt 0:05:03]} Kh8 {[%emt 0:00:06]} 16. Ng5 {[%emt 0:01:47]} e4 {[%emt 0:06:51]} 17. Rac1 {[%emt 0:04:21]} Ne5 {[%emt 0:02:10]} 18. Bf1 {[%emt 0:01:33]} Bd7 {[%emt 0:02:29]} 19. Qb3 {[%emt 0:04:18]} Rae8 {[%emt 0:01:35]} 20. Rcd1 {[%emt 0:05:56]} Bh6 {[%emt 0:04:38]} 21. h4 {[%emt 0:02:09]} Bxg5 {[%emt 0:01:21]} 22. hxg5 {[%emt 0:00:03]} Ng4 {[%emt 0:00:27]} 23. g3 {[%emt 0:00:42]} e3 {[%emt 0:00:18]} 0-1

[Event "Lidkoping Open 2019"]
[Site "Lidkoping"]
[Date "2019.08.24"]
[Round "2.5"]
[White "Svensson, Bengt"]
[Black "Nyberg, Arne"]
[Result "1-0"]
[ECO "C18"]
[WhiteElo "2310"]
[BlackElo "1967"]
[Annotator "NA"]
[PlyCount "99"]
[EventDate "2019.08.19"]
[EventType "swiss"]
[EventCountry "SWE"]
[SourceTitle "playchess.com"]
[Source "ChessBase"]
[SourceQuality "1"]
[TimeControl "2700+10"]

1. e4 {[%emt 0:00:00]} e6 {[%emt 0:00:08]} 2. d4 {[%emt 0:00:00]} d5 {[%emt 0:00:05]} 3. Nc3 {[%emt 0:00:04]} Bb4 {[%emt 0:00:05]} 4. e5 {[%emt 0:00:11]} c5 {[%emt 0:00:06]} 5. a3 {[%emt 0:00:03]} Bxc3+ {[%emt 0:00:08]} 6. bxc3 {[%emt 0:00:02]} Qc7 {[%emt 0:00:21]} 7. Qg4 {[%emt 0:00:30]} f5 {[%emt 0:01:37]} 8. Qg3 {[%emt 0:02:33]} Qf7 {[%emt 0:02:10]} 9. Nf3 {[%emt 0:01:47]} Nc6 {[%emt 0:04:46]} 10. Bb5 {[%emt 0:02:45]} Nge7 {[%emt 0:01:15]} 11. a4 {[%emt 0:01:47]} Bd7 {[%emt 0:04:04]} 12. Ba3 {[%emt 0:01:00]} c4 {[%emt 0:02:02]} 13. h4 {[%emt 0:02:30]} h6 {[%emt 0:00:40]} 14. Kd2 {[%emt 0:05:39]} a6 {[%emt 0:05:19]} 15. Bxc6 {[%emt 0:00:37]} Bxc6 {[%emt 0:00:20]} 16. h5 {[%emt 0:01:31]} g5 {[%emt 0:11:03]} 17. hxg6 {[%emt 0:00:21]} Qxg6 {[%emt 0:00:21]} 18. Qh4 {[%emt 0:06:55]} Qg7 {[%emt 0:02:58]} 19. Qh5+ {[%emt 0:09:14]} Kd7 {[%emt 0:01:05]} 20. Bxe7 {[%emt 0:00:52]} Qxe7 {[%emt 0:00:27]} 21. a5 {[%emt 0:00:29]} Rag8 {[%emt 0:00:29]} 22. g3 {[%emt 0:00:14]} Qg7 {[%emt 0:00:37]} 23. Rh2 {[%emt 0:00:28]} Kc7 {[%emt 0:02:24]} 24. Qh4 {[%emt 0:00:38]} Kb8 {[%emt 0:00:25]} 25. Rah1 {[%emt 0:01:18]} Be8 {[%emt 0:01:13]} 26. Qd8+ {[%emt 0:00:50]} Ka7 {[%emt 0:00:03]} 27. Qb6+ {[%emt 0:00:05]} Ka8 {[%emt 0:00:13]} 28. Qxe6 {[%emt 0:00:26]} Qg4 {[%emt 0:00:42]} 29. Rxh6 {[%emt 0:02:34]} Rxh6 {[%emt 0:00:37]} 30. Rxh6 {[%emt 0:00:02]} Bc6 {[%emt 0:02:04]} 31. Rh4 {[%emt 0:01:00]} Re8 {[%emt 0:00:42]} 32. Rxg4 {[%emt 0:00:51]} Rxe6 {[%emt 0:00:02]} 33. Rf4 {[%emt 0:00:12]} b6 {[%emt 0:00:32]} 34. Rxf5 {[%emt 0:00:09]} bxa5 {[%emt 0:00:01]} 35. Rf6 {[%emt 0:00:06]} Bd7 {[%emt 0:00:08]} 36. Rxe6 {[%emt 0:00:08]} Bxe6 {[%emt 0:00:01]} 37. Ng5 {[%emt 0:00:03]} Bd7 {[%emt 0:00:06]} 38. e6 {[%emt 0:00:08]} Be8 {[%emt 0:00:02]} 39. Nf7 {[%emt 0:00:21]} Kb8 {[%emt 0:00:07]} 40. Nd6 {[%emt 0:00:02]} Bh5 {[%emt 0:00:07]} 41. e7 {[%emt 0:00:04]} Kc7 {[%emt 0:00:01]} 42. e8=Q {[%emt 0:00:02]} Bxe8 {[%emt 0:00:01]} 43. Nxe8+ {[%emt 0:00:01]} Kd7 {[%emt 0:00:03]} 44. Nf6+ {[%emt 0:00:03]} Ke6 {[%emt 0:00:01]} 45. Nh5 {[%emt 0:00:04]} a4 {[%emt 0:00:01]} 46. Nf4+ {[%emt 0:00:04]} Kf5 {[%emt 0:00:01]} 47. f3 {[%emt 0:00:02]} a3 {[%emt 0:00:01]} 48. Kc1 {[%emt 0:00:01]} a5 {[%emt 0:00:01]} 49. Kb1 {[%emt 0:00:01]} a4 {[%emt 0:00:01]} 50. Nxd5 {[%emt 0:00:02]} 1-0